Cogmind - Beta 15 @@@ ROGUE MODE // 2025.09.16 @ 22:38:52 Player: Runagate Result: Destroyed by G-34 Mercenary with Small Laser Performance ------------- Evolutions (1) 500 Regions Visited (3) 600 Robots Destroyed (37) 185 Value Destroyed (752) 752 Prototype IDs (2) 40 Alien Tech Used (0) 0 Bonus (0) 0 TOTAL SCORE: 2077 Bonus ------- None Cogmind --------- Core Integrity 0/400 Matter 202/300 Energy 125/125 System Corruption 0% Temperature Cool (6) Movement Flying (197) Ox2 Location -9/Mines Parts ------- > --- POWER (1) -------- Light Ion Engine > --- PROPULSION (2) --- Flight Unit Flight Unit > --- UTILITY (4) ------ Large Storage Unit Targeting Computer > --- WEAPON (2) ------- (None) > --- INVENTORY (15) --- Light Ion Engine Flight Unit Flight Unit Surge Thruster Surge Thruster Heat Sink Medium Storage Unit High-capacity Matter Pod (0) Light Cannon Mining Laser Peak State ------------ > --- POWER ------------ Ion Engine > --- PROPULSION ------- Aluminum Leg Aluminum Leg > --- UTILITY ---------- Medium Storage Unit Large Storage Unit Targeting Computer Hardened Light Armor Plating > --- WEAPON ----------- Light Assault Rifle Light Cannon > --- INVENTORY -------- Light Ion Engine Surge Thruster Surge Thruster Surge Thruster Surge Thruster Heat Sink Small Storage Unit High-capacity Matter Pod Light Assault Rifle Light Assault Rifle Rocket Launcher Mining Laser [Rating: 12] Favorites ----------- Power Ion Engine Engine Ion Engine Propulsion Aluminum Leg Leg Aluminum Leg Flight Unit Flight Unit Utility Small Storage Unit Device Seismic Detector Storage Small Storage Unit Processor Targeting Computer Protection Hardened Light Armor Plating Weapon Light Assault Rifle Ballistic Gun Light Assault Rifle Ballistic Cannon Light Cannon Launcher Rocket Launcher Special Weapon Mining Laser Build | -11 -10 -9 -9 ------- Run | Yrd Mat Mat Min Slots Evolved 2 | . . 2 . Power . | . . . . Propulsion . | . . . . Utility 2 | . . 2 . Weapon . | . . . . Parts Attached 29 | 9 4 11 5 Power 5 | 2 1 1 1 Engine 5 | 2 1 1 1 Core . | . . . . Reactor . | . . . . Propulsion 10 | 2 3 1 4 Treads . | . . . . Leg 6 | 2 3 1 . Wheel . | . . . . Hover . | . . . . Flight 4 | . . . 4 Utility 7 | 2 . 5 . Device 1 | 1 . . . Storage 3 | 1 . 2 . Processor 1 | . . 1 . Hackware . | . . . . Protection 2 | . . 2 . Artifact . | . . . . Weapon 7 | 3 . 4 . Energy Gun . | . . . . Energy Cannon . | . . . . Ballistic Gun 4 | 3 . 1 . Ballistic Cannon 1 | . . 1 . Launcher 1 | . . 1 . Special Weapon 1 | . . 1 . Impact Weapon . | . . . . Slashing Weapon . | . . . . Piercing Weapon . | . . . . Special Melee Weapon . | . . . . Unidentified Prototypes . | . . . . Parts Lost 11 | . 1 . 10 Power 1 | . . . 1 Propulsion 4 | . . . 4 Utility 2 | . 1 . 1 Weapon 4 | . . . 4 Highest Loss Streak 5 | . 1 . 5 To Critical Strikes . | . . . . Average Backups 8 | 2 6 10 10 Power 1 | 1 1 1 1 Propulsion 2 | . 2 3 3 Utility 2 | . 1 2 3 Weapon 2 | . 1 2 3 Tool/Special . | . . . . Unused Backups 9 | . 2 . 7 Power 1 | . 1 . . Propulsion 5 | . . . 5 Utility 3 | . 1 . 2 Weapon . | . . . . Tool/Special . | . . . . Average Slot Usage (%) 91 | . 98 95 69 Engine 11 | . 14 11 7 Leg 21 | . 28 22 9 Flight 2 | . . . 10 Device 3 | . 12 . . Storage 16 | . 14 19 11 Processor 7 | . . 10 11 Protection 5 | . . 9 4 Ballistic Gun 16 | . 28 11 11 Ballistic Cannon 3 | . . 7 . Launcher 1 | . . . 4 Special Weapon 1 | . . 2 . Peak Build Rating 12 | 7 7 12 12 Average Rating 9 | 5 6 10 9 On Entrance 6 | . 7 6 12 Naked Turns . | . . . . Heaviest Build 44 | 14 14 44 35 Greatest Support 20 | 20 20 20 20 Greatest Overweight (x) 6 | . . 2 6 Average Overweight (x) . | . . 1 1 Largest Inventory Capacity 15 | 8 8 15 15 Average Capacity 10 | 7 8 11 15 Most Carried 13 | 3 8 13 12 Average Carried 8 | 2 6 10 10 Final Capacity 15 | 8 8 15 15 Final Carried 12 | 3 8 12 10 Class Distribution -------------------- 100% | Mutant Dominant Class ---------------- Mutant | -10/Materials Mutant | -9/Materials Mutant | -9/Mines Resources | -11 -10 -9 -9 ----------- Run | Yrd Mat Mat Min Matter Collected 960 | 378 196 159 227 Remotely . | . . . . Salvage Created 837 | 177 331 162 167 Parts 63 | 13 23 12 15 Haulers Intercepted . | . . . . Recyclers Shooed . | . . . . Parts Field Recycled . | . . . . Retrieved Matter . | . . . . Parts Self-Destructed . | . . . . Prevented . | . . . . Kills | -11 -10 -9 -9 ------- Run | Yrd Mat Mat Min Combat Hostiles Destroyed 26 | . 10 5 11 Guns 18 | . 10 1 7 Cannons 4 | . . 4 . AOE 4 | . . . 4 Classes Destroyed 9 | 3 4 1 1 Worker 1 | 1 . . . Tunneler 4 | 4 . . . Recycler 1 | 1 . . . Operator 3 | . 2 1 . Watcher 2 | . 1 1 . Swarmer 14 | . 6 . 8 Grunt 10 | . 4 4 2 Sentry 1 | . . 1 . Demolisher 1 | . . . 1 Best Kill Streak 6 | 3 3 2 6 Combat Bots Only 6 | . 3 2 6 Max Kills in Single Turn 4 | 1 2 1 4 Gunslinging 1 | . 1 . . Exploded 4 | . . . 4 Melee . | . . . . Uniques/NPCs Destroyed . | . . . . Combat | -11 -10 -9 -9 -------- Run | Yrd Mat Mat Min Hostile Shots Fired 176 | . 48 26 102 Missed 41 | . 13 7 21 Hits 135 | . 35 19 81 Projectile 135 | . 35 19 81 AOE 16 | . . . 16 Critical Strikes 1 | . . 1 . Damage Taken 1846 | . 345 248 1253 Core 480 | . 80 24 376 Absorbed by Shields . | . . . . Core Remaining (%) 84 | 100 68 . . Volleys Fired 132 | 22 44 27 39 Largest 2 | 2 2 2 2 Hottest 120 | 40 40 120 53 Shots Fired 247 | 44 88 53 62 Gun 214 | 44 88 27 55 Cannon 19 | . . 19 . Launcher 7 | . . . 7 Special 7 | . . 7 . Kinetic 233 | 44 88 46 55 Thermal 7 | . . 7 . Explosive 7 | . . . 7 Electromagnetic . | . . . . Robot Hit Streak 12 | 11 12 7 6 Robot Miss Streak 5 | 2 5 3 3 Penetration Max . | . . . . Secondary Targets 3 | . 2 . 1 Max Gunslinging Chain 1 | . 1 . 1 Shots Hit Robots 159 | 34 53 28 44 Core Hits 70 | 8 26 11 25 Critical Kills 1 | . . . 1 Critical Parts Destroyed . | . . . . Critical Strikes 3 | . . 2 1 Destroy 1 | . . . 1 Blast 2 | . . 2 . Melee Attacks . | . . . . Impact . | . . . . Slashing . | . . . . Piercing . | . . . . Sneak Attacks . | . . . . Combat Hostiles . | . . . . Follow-up Attacks . | . . . . Damage Inflicted 1954 | 296 629 405 624 Guns 1357 | 296 621 124 316 Cannons 281 | . . 281 . Explosions 308 | . . . 308 Melee . | . . . . Ramming 8 | . 8 . . Kinetic 1638 | 296 621 405 316 Thermal . | . . . . Explosive 308 | . . . 308 Electromagnetic . | . . . . Impact . | . . . . Slashing . | . . . . Piercing . | . . . . Highest Corruption . | . . . . Average Corruption . | . . . . Corruption Purged . | . . . . Corruption Blocked . | . . . . Overload Shots . | . . . . Overflow Damage 10 | . . . 10 Projectiles . | . . . . Explosions 10 | . . . 10 Melee . | . . . . Knockbacks 4 | . . 4 . Impact . | . . . . Kinetic 4 | . . 4 . Secondary . | . . . . Self-Inflicted Damage 16 | . . . 16 Shots 1 | . . . 1 Rammed . | . . . . Targets Rammed 1 | . 1 . . Kicked 1 | . 1 . . Crushed . | . . . . Highest Temperature 96 | . 18 96 32 Average Temperature 24 | . 8 30 11 Received Heat Transfer 321 | . 96 129 96 Siege Activations . | . . . . Martial Activations . | . . . . Shielding Activations . | . . . . Robots Disrupted . | . . . . Combat Hostiles . | . . . . Robots Corrupted . | . . . . Combat Hostiles . | . . . . Parts Fried . | . . . . Impact Corruptions . | . . . . Robots Melted . | . . . . Combat Hostiles . | . . . . Parts Melted . | . . . . Heat Transferred . | . . . . Parts Sabotaged . | . . . . Parts Stolen . | . . . . Parts Stripped . | . . . . Power Chain Reactions . | . . . . Alert | -11 -10 -9 -9 ------- Run | Yrd Mat Mat Min Maximum Alert Level . | . . . . Low Security (%) 100 | 100 100 100 100 Level 1 . | . . . . Level 2 . | . . . . Level 3 . | . . . . Level 4 . | . . . . Level 5 . | . . . . High Security . | . . . . Max Security . | . . . . Peak Influence 130 | 10 106 40 130 Initial 18 | . . 18 . Average 27 | 1 46 6 64 Influence Increases 857 | 30 310 187 330 Destroy 0b10 Robot/C 520 | . 200 100 220 Destroy 0b10 Robot/NC 55 | 30 15 10 . Destroy Leader 84 | . 42 12 30 Successful Hack 50 | . 23 27 . Disable Machine 30 | . . 30 . Destroy Structure 28 | . . 8 20 Lose Combat Pursuer 90 | . 30 . 60 Influence Decreases 795 | 30 264 233 268 Entered New Map 28 | . . 28 . Time Decay 667 | 30 254 205 178 Lost Part 70 | . 10 . 60 Lost Ally 30 | . . . 30 Squads Dispatched . | . . . . Investigation . | . . . . Extermination . | . . . . Reinforcement . | . . . . Assault . | . . . . Garrison . | . . . . Intercept . | . . . . Searches Triggered . | . . . . Construction Impeded . | . . . . Haulers Reinforced . | . . . . Active Scanning Responses . | . . . . Cargo Convoy Interrupts . | . . . . Stealth | -11 -10 -9 -9 --------- Run | Yrd Mat Mat Min Distress Signals 3 | . 3 . . Communications Jammed . | . . . . Distress Signals . | . . . . Times Spotted 46 | . 21 8 17 Peak Tracking Total 7 | . 5 2 7 Tactical Retreats 5 | . 2 . 3 Traps | -11 -10 -9 -9 ------- Run | Yrd Mat Mat Min Traps Triggered . | . . . . Indirectly . | . . . . Trap Hack Attempts . | . . . . Triggered . | . . . . Disarmed . | . . . . Reprogrammed . | . . . . Reused . | . . . . Traps Extracted . | . . . . Installed . | . . . . Triggered . | . . . . Machines | -11 -10 -9 -9 ---------- Run | Yrd Mat Mat Min Machines Disabled 2 | . . 2 . Max in Single Turn 2 | . . 2 . Machines Repaired . | . . . . Machines Dismantled . | . . . . Machines Sabotaged . | . . . . Overloaded Fab Kills . | . . . . Hacking | -11 -10 -9 -9 --------- Run | Yrd Mat Mat Min Machines Accessed 9 | . 5 4 . Terminals 9 | . 5 4 . Fabricators . | . . . . Repair Stations . | . . . . Recycling Units . | . . . . Scanalyzers . | . . . . Garrison Access . | . . . . Total Hacks 27 | . 12 15 . Successful 12 | . 6 6 . Failed 14 | . 6 8 . Catastrophic 2 | . 2 . . Database Lockouts 1 | . . 1 . Manual 20 | . 8 12 . Terminals 27 | . 12 15 . Fabricators . | . . . . Repair Stations . | . . . . Recycling Units . | . . . . Scanalyzers . | . . . . Garrison Access . | . . . . Terminal Hacks 12 | . 6 6 . Prototype ID Bank 1 | . . 1 . Emergency Access Points 3 | . 2 1 . Locate Traps 4 | . 2 2 . Registered Components 1 | . . 1 . Zone Layout 3 | . 2 1 . Fabricator Hacks . | . . . . Repair Station Hacks . | . . . . Recycling Unit Hacks . | . . . . Scanalyzer . | . . . . Garrison Access Hacks . | . . . . Unauthorized Hacks . | . . . . Terminals . | . . . . Fabricators . | . . . . Repair Stations . | . . . . Recycling Units . | . . . . Scanalyzers . | . . . . Garrison Access . | . . . . Data Cores Recovered 2 | . 1 1 . Used 1 | . 1 . . Hacking Detections 8 | . 4 4 . Full Trace Events 1 | . 1 . . Feedback Events . | . . . . Feedback Blocked . | . . . . Robot Schematics Acquired . | . . . . Robots Built . | . . . . Authchips . | . . . . Time . | . . . . Total Robot Build Rating . | . . . . Part Schematics Acquired . | . . . . Parts Built . | . . . . Authchips . | . . . . Time . | . . . . Total Part Build Rating . | . . . . Parts Repaired . | . . . . Time . | . . . . Parts Recycled . | . . . . Recycled Matter . | . . . . Retrieved Matter . | . . . . Retrieved Components . | . . . . Parts Scanalyzed . | . . . . Part Schematics Acquired . | . . . . Parts Damaged . | . . . . Bothacking | -11 -10 -9 -9 ------------ Run | Yrd Mat Mat Min Used RIF Installer . | . . . . Robots Hacked . | . . . . Non-combat . | . . . . Combat . | . . . . Robot Hacks Applied . | . . . . Relay Couplers Released . | . . . . Fabnet Peak Effective % . | . . . . Robots Rewired . | . . . . Allies Hacked . | . . . . Hacks Repelled . | . . . . Allies | -11 -10 -9 -9 -------- Run | Yrd Mat Mat Min Total Allies 3 | . . . 3 Largest Group 3 | . . . 3 Highest-Rated Group 40 | . . . 40 Highest-Rated Ally 16 | . . . 16 Total Orders . | . . . . Ally Attacks 3 | . . . 3 Total Damage 43 | . . . 43 Kills . | . . . . Allies Corrupted . | . . . . Allies Melted . | . . . . Intel | -11 -10 -9 -9 ------- Run | Yrd Mat Mat Min Active Infowar (turns) 591 | 15 576 . . Seismic 591 | 15 576 . . Robot Analysis Total . | . . . . Derelict Logs Recovered 1 | . . . 1 Drone Launches . | . . . . Drone Recoveries . | . . . . Exploration | -11 -10 -9 -9 ------------- Run | Yrd Mat Mat Min Turns Passed 2309 | 158 659 1075 417 Spaces Moved 1104 | 70 399 475 160 Core 6 | 5 . . 1 Treads . | . . . . Legs 1020 | 65 399 475 81 Wheels . | . . . . Hover . | . . . . Flight 78 | . . . 78 Fastest Speed 50 | 50 120 120 152 Average Speed 162 | 115 120 194 192 Slowest Speed 440 | 120 120 260 440 Overloaded Moves . | . . . . Propulsion Burnouts . | . . . . Robots Hopped . | . . . . Potential Cave-ins . | . . . . Cave-ins Triggered . | . . . . Exploration Rate (%) 40 | 5 79 34 43 Regions Visited 3 Branch Regions 1 Pre-discovered Areas . | . . . . Known Exits Taken . | . . . . Unknown Exits Taken 3 | 1 1 1 . Scrap Searched . | . . . . Spaces Dug 6 | . . 6 . Terrain Destroyed 52 | . . 6 46 Melee . | . . . . Projectile 6 | . . 6 . AOE 46 | . . . 46 Terrain Rammed . | . . . . Walls Destroyed . | . . . . Machines Disabled . | . . . . Actions | -11 -10 -9 -9 --------- Run | Yrd Mat Mat Min Total 1381 | 103 501 561 216 Wait 77 | 2 45 26 4 Move 1101 | 69 398 474 160 Hop . | . . . . Pick Up 17 | 1 6 7 3 Fast Attach 13 | 7 . 3 3 Attach 5 | . . 1 4 Detach 2 | . . 2 . Swap 21 | 2 4 13 2 Drop 12 | . 3 8 1 Fire 132 | 22 44 27 39 Melee . | . . . . Ram . | . . . . Kick 1 | . 1 . . Crush . | . . . . Escape Stasis . | . . . . Rewire . | . . . . Trap . | . . . . Miscellaneous . | . . . . Route ------- -11/Scrapyard -10/Materials (discovered 3 exits: *Mat x2 / [*Min]) -9/Materials -9/Mines (discovered 1 exit: Mat) History --------- Turn | Location | Event 14 | -11/Scrapyard | Discovered new exit (range 16) 159 | -11/Scrapyard | Entered Materials 317 | -10/Materials | Build established: Mutant 548 | -10/Materials | Discovered new exit (range 12) 631 | -10/Materials | Discovered new exit (range 9) 649 | -10/Materials | Discovered new exit (range 19) 659 | -10/Materials | Derelicts attacked the area 818 | -10/Materials | Entered another Materials area 818 | -9/Materials | Evolved 2 slots: Utility x2 1122 | -9/Materials | Discovered new exit (range 15) 1124 | -9/Materials | Central database locked down 1893 | -9/Materials | Entered Mines 1919 | -9/Mines | Assisted by bots powering up and referring to "LRC-V3" 1991 | -9/Mines | Identified exit to Materials 2025 | -9/Mines | Assembled infested the area 2076 | -9/Mines | Core integrity fell below 50% 2087 | -9/Mines | Lost 3 allies 2106 | -9/Mines | Lost 5 parts (1p2n1u1w) 2168 | -9/Mines | Core integrity fell below 20% 2213 | -9/Mines | Lost 4 parts (2n2w) 2310 | -9/Mines | Destroyed by G-34 Mercenary with Small Laser Last Messages --------------- (Destroy). 02140_ G-47 Trooper destroyed. 02145_ Surge Thruster destroyed. 02156_ G-34 Mercenary destroyed. 02156_ Lgt. Assault Rifle destroyed. 02165_ Surge Thruster destroyed. 02175_ S-10 Pest destroyed. 02180_ Destroyed Flight Unit. 02182_ Lgt. Assault Rifle destroyed. 02183_ S-10 Pest destroyed. 02188_ Acquired Flight Unit. 02194_ Acquired 11 matter. 02203_ Acquired Flight Unit. 02209_ Acquired Lgt. Ion Engine. 02212_ Acquired 66 matter. 02216_ Acquired Flight Unit. 02224_ Acquired 78 matter. 02228_ Dropped Flight Unit. 02228_ Acquired Flight Unit. 02281_ Lgt. Assault Rifle destroyed. Map ----- +----------------------------------------------------+ | ??????????????????? ????????????????? | | ??????????????????? ????????????????? | | ??????????????????? ????????????????? | | ??????????????????? ????????????????? | | ??????????????????? ????????????????? | | ???????????##?????? ????????????????? | | ??????????## ?????# #???????????????? | | ?????????## ????# #???????????????? | | ????????## ????# #???????????????? | | ??????## ????# #???????????????? | | ??????# """ ????# #???????????????? | | ??????# """ #???# #???????????????? | | ???????# """ #### #???????????????? | | ????????# ## ### #?#?????????? | | ????????## =** ## ?????????? | | ?????????### = # ?????????? | | ???????????#### !######## ?????????? | | ?????####?????# ##?????## ?????????? | | ????## ##????# #?????## #?????????? | | ????# ###### #?????# ##????????? | | ????# #?????? ##???????? | | ????# ####?????? #???????? | | ???## #????????